[Event "Festival Groningen-A 2024"]
[Site "Groningen"]
[Date "2024.12.30"]
[Round "9.1"]
[White "Narayanan S L"]
[Black "Maatman, Nick"]
[Result "1/2-1/2"]
[ECO "D33"]
[WhiteElo "2647"]
[BlackElo "2375"]
[Annotator "TA"]
[PlyCount "59"]
[EventDate "2024.12.21"]
[EventType "swiss"]
[EventCountry "NED"]
[SourceTitle "playchess.com"]
[Source "ChessBase"]
[SourceQuality "1"]
[TimeControl "40/5400+30:1800+30"]

{[%evp 16,59,36,26,30,30,58,35,52,40,35,45,57,31,38,39,40,40,43,44,42,45,35,31,54,65,56,56,53,43,48,23,17,9,4,0,0,0,0,0,0,0,0,0,0,0]} 1. c4 {[%emt 0:00:08]} c5 {[%emt 0:00:38]} 2. Nf3 {[%emt 0:00:15]} Nf6 {[%emt 0:01:20]} 3. Nc3 {[%emt 0:00:08]} Nc6 {[%emt 0:02:57]} 4. g3 {[%emt 0:00:07]} e6 {[%emt 0:00:47][%cal Be7e6,Be6d5,Bd5d4][%mdl 32]} 5. Bg2 {[%emt 0:00:16]} d5 {[%emt 0:00:04]} 6. cxd5 {[%emt 0:00:06]} exd5 {[%emt 0:00:03]} 7. d4 {[%emt 0:00:07]} cxd4 {[%emt 0:00:04]} 8. Nxd4 {[%emt 0:00:06]} Bc5 {[%emt 0:00:12]} 9. Nb3 {[%emt 0:00:15][%csl LRc5,LRd5]} Bb6 {[%emt 0:00:09]} 10. O-O {[%emt 0:00:22][%cal Oa2a4]} d4 {[%emt 0:01:18]} 11. Na4 {[%emt 0:00:05]} O-O {[%emt 0:00:14] White is slightly better.} 12. Re1 {[%emt 0:04:50]} Re8 {[%emt 0:05:39]} 13. Bg5 {[%emt 0:01:55]} h6 {[%emt 0:00:05]} 14. Nxb6 {[%emt 0:01:17]} axb6 {[%emt 0:00:11]} 15. Bxc6 {[%emt 0:00:24]} bxc6 {[%emt 0:00:07]} 16. Bxf6 {[%emt 0:00:04]} Qxf6 {[%emt 0:00:03]} 17. Qxd4 {[%emt 0:00:08]} Qd8 {[%emt 0:00:15]} 18. Qc3 {[%emt 0:14:26]} c5 {[%emt 0:06:10]} 19. Rad1 {[%emt 0:00:41]} Qe7 {[%emt 0:04:56]} 20. a3 {[%emt 0:01:13]} Ra4 {[%emt 0:09:34]} 21. f3 {[%emt 0:04:30] Against Re4} h5 {[%emt 0:09:52]} 22. Nd2 {[%emt 0:12:29]} Rd4 {[%emt 0:15:04]} 23. Ne4 {[%emt 0:07:37]} Rxd1 $1 {[%emt 0:09:39]} 24. Rxd1 {[%emt 0:00:05] The position is equal.} Bb7 {[%emt 0:00:03] Repels Rd5} 25. Rd3 {[%emt 0:14:43]} Bxe4 {[%emt 0:00:21]} 26. Re3 {[%emt 0:00:09]} Qb7 {[%emt 0:03:10]} 27. fxe4 {[%emt 0:00:35]} Rxe4 {[%emt 0:00:21]} 28. Kf2 {[%emt 0:01:29]} Rxe3 {[%emt 0:01:59]} 29. Qxe3 {[%emt 0:00:08]} Qd5 {[%emt 0:05:50]} 30. Qf4 {[%emt 0:36:52] Weighted Error Value: White=0.03 (flawless) /Black=0.01 (flawless) .  OK:         	White=13    	Black=7      Best:        	---       	Black=1      Strong:       	---       	Black=1} 1/2-1/2

[Event "Festival Groningen-A 2024"]
[Site "Groningen"]
[Date "2024.12.30"]
[Round "9.2"]
[White "Mitusov, Semen"]
[Black "Beerdsen, Thomas"]
[Result "1/2-1/2"]
[ECO "C54"]
[WhiteElo "2465"]
[BlackElo "2502"]
[Annotator "TA"]
[PlyCount "55"]
[EventDate "2024.12.21"]
[EventType "swiss"]
[EventCountry "NED"]
[SourceTitle "playchess.com"]
[Source "ChessBase"]
[SourceQuality "1"]
[TimeControl "40/5400+30:1800+30"]

{[%evp 10,55,16,13,15,-2,16,19,16,5,4,-13,25,14,20,18,16,14,21,20,38,10,16,22,50,19,41,41,79,57,69,67,62,19,21,14,18,4,13,0,0,0,0,0,16,16,25,25]} 1. e4 {[%emt 0:00:03]} e5 {[%emt 0:00:25]} 2. Nf3 {[%emt 0:00:33]} Nc6 {[%emt 0:00:07]} 3. Bc4 {[%emt 0:00:04]} Nf6 {[%emt 0:00:23]} 4. d3 {[%emt 0:00:04]} Bc5 {[%emt 0:00:13]} 5. c3 {[%emt 0:02:42]} O-O {[%emt 0:00:18]} 6. Bg5 {[%emt 0:02:47]} Be7 {[%emt 0:03:11]} 7. Nbd2 {[%emt 0:02:04][%cal Bb1d2,Bd2f1,Bf1e3][%mdl 32]} d6 {[%emt 0:06:38]} 8. a4 {[%emt 0:02:37]} h6 {[%emt 0:01:31] The position is equal.} 9. Bxf6 {[%emt 0:06:22]} Bxf6 {[%emt 0:00:06]} 10. a5 {[%emt 0:00:11]} a6 {[%emt 0:01:10]} 11. Nf1 {[%emt 0:02:55]} Ne7 {[%emt 0:06:23]} 12. Ne3 {[%emt 0:01:25]} c6 {[%emt 0:01:58]} 13. Qb3 {[%emt 0:01:09]} Rb8 {[%emt 0:09:19]} 14. O-O {[%emt 0:03:43]} Qc7 {[%emt 0:03:03]} 15. Rfd1 {[%emt 0:03:50]} Ng6 {[%emt 0:03:48]} 16. d4 {[%emt 0:09:26][%cal Bd3d4,Bd4d5][%mdl 32]} Re8 {[%emt 0:04:25]} 17. Qc2 {[%emt 0:02:56]} Qe7 {[%emt 0:06:20]} 18. d5 {[%emt 0:02:28]} c5 {[%emt 0:02:10]} 19. b4 {[%emt 0:02:34] White is more active.} cxb4 {[%emt 0:01:30]} 20. cxb4 {[%emt 0:00:05]} Bd7 {[%emt 0:08:01]} 21. Rdc1 {[%emt 0:06:33]} Nh4 {[%emt 0:02:55]} 22. Nxh4 {[%emt 0:08:51]} Bxh4 {[%emt 0:00:21]} 23. Qe2 {[%emt 0:00:30]} Bg5 {[%emt 0:04:59]} 24. g3 {[%emt 0:02:53]} Rec8 {[%emt 0:01:35]} 25. h4 {[%emt 0:02:03]} Bxe3 {[%emt 0:00:30]} 26. Qxe3 {[%emt 0:00:01]} Rc7 {[%emt 0:01:52]} 27. Bf1 {[%emt 0:07:49]} Rbc8 {[%emt 0:00:31]} 28. Rxc7 {[%emt 0:01:59] Weighted Error Value: White=0.09 (flawless) /Black=0.10 (very precise) .  Inaccurate:     	White=3     	Black=3      OK:         	White=9     	Black=9      Best:        	---       	Black=1} 1/2-1/2

[Event "Festival Groningen-A 2024"]
[Site "Groningen"]
[Date "2024.12.30"]
[Round "9.3"]
[White "Manish Anto Cristiano F"]
[Black "De Winter, Arthur"]
[Result "1/2-1/2"]
[ECO "B96"]
[WhiteElo "2296"]
[BlackElo "2446"]
[Annotator "RC"]
[PlyCount "109"]
[EventDate "2024.12.21"]
[EventType "swiss"]
[EventCountry "NED"]
[SourceTitle "playchess.com"]
[Source "ChessBase"]
[SourceQuality "1"]
[TimeControl "40/5400+30:1800+30"]

1. e4 {[%emt 0:00:04]} c5 {[%emt 0:00:04]} 2. Nf3 {[%emt 0:00:10]} d6 {[%emt 0:00:05]} 3. d4 {[%emt 0:00:08]} cxd4 {[%emt 0:00:03]} 4. Nxd4 {[%emt 0:00:12]} Nf6 {[%emt 0:00:03]} 5. Nc3 {[%emt 0:00:13]} a6 {[%emt 0:00:02]} 6. Bg5 {[%emt 0:00:42]} e6 {[%emt 0:00:06]} 7. f4 {[%emt 0:00:09]} h6 {[%emt 0:00:10]} 8. Bh4 {[%emt 0:00:10]} Nbd7 {[%emt 0:00:10]} 9. Qe2 {[%emt 0:00:57]} e5 {[%emt 0:00:07]} 10. fxe5 {[%emt 0:00:38]} Nxe5 {[%emt 0:00:07]} 11. O-O-O {[%emt 0:00:50]} Be7 {[%emt 0:00:42]} 12. Nf3 {[%emt 0:00:10]} Bg4 {[%emt 0:31:43]} 13. h3 {[%emt 0:18:50]} Bxf3 {[%emt 0:00:53]} 14. gxf3 {[%emt 0:00:08]} Nh5 {[%emt 0:00:38]} 15. Bxe7 {[%emt 0:08:28]} Qxe7 {[%emt 0:00:11]} 16. Nd5 {[%emt 0:06:12]} Qg5+ {[%emt 0:01:01]} 17. Kb1 {[%emt 0:02:44]} Ng3 {[%emt 0:15:33]} 18. Qh2 {[%emt 0:19:22]} Nxf3 {[%emt 0:03:29]} 19. Qf2 {[%emt 0:01:28]} Nd2+ {[%emt 0:06:06]} 20. Rxd2 {[%emt 0:02:31]} Nxh1 {[%emt 0:07:56]} 21. Qe1 {[%emt 0:15:40]} Qg3 {[%emt 0:04:47]} 22. Qd1 {[%emt 0:00:57]} O-O {[%emt 0:05:31]} 23. Bg2 {[%emt 0:01:34]} Nf2 {[%emt 0:02:53]} 24. Qf1 {[%emt 0:00:06]} Nxe4 {[%emt 0:01:36]} 25. Bxe4 {[%emt 0:00:02]} Qh4 {[%emt 0:00:14]} 26. Rg2 {[%emt 0:02:42]} f5 {[%emt 0:01:53]} 27. Bf3 {[%emt 0:05:51]} Rae8 {[%emt 0:00:50]} 28. Rg1 {[%emt 0:00:07]} Kh7 {[%emt 0:01:41]} 29. a3 {[%emt 0:00:48]} Re5 {[%emt 0:01:23]} 30. Nb4 {[%emt 0:00:52]} b5 {[%emt 0:03:14]} 31. Bb7 {[%emt 0:04:01]} a5 {[%emt 0:01:29]} 32. Nd3 {[%emt 0:00:23]} Re7 {[%emt 0:02:32]} 33. Bc6 {[%emt 0:01:37]} b4 {[%emt 0:01:35]} 34. axb4 {[%emt 0:01:04]} axb4 {[%emt 0:00:05]} 35. Qg2 {[%emt 0:03:24]} Qd4 {[%emt 0:01:42]} 36. Bd5 {[%emt 0:02:06]} g5 {[%emt 0:02:21]} 37. Rd1 {[%emt 0:00:17]} Ra7 {[%emt 0:04:05]} 38. Re1 {[%emt 0:01:02]} Ra5 {[%emt 0:01:17]} 39. Re7+ {[%emt 0:00:29]} Kg6 {[%emt 0:00:34]} 40. Bf3 {[%emt 0:02:47]} b3 {[%emt 0:00:21]} 41. Qe2 {[%emt 0:03:39]} Qg1+ {[%emt 0:10:42]} 42. Ne1 {[%emt 0:00:54]} bxc2+ {[%emt 0:01:15]} 43. Kxc2 {[%emt 0:01:48]} Re5 {[%emt 0:03:17]} 44. Bh5+ {[%emt 0:01:28]} Kf6 {[%emt 0:00:12]} 45. Rxe5 {[%emt 0:00:08]} dxe5 {[%emt 0:00:22]} 46. Qa6+ {[%emt 0:00:07]} Kg7 {[%emt 0:02:03]} 47. Qg6+ {[%emt 0:00:16]} Kh8 {[%emt 0:00:03]} 48. Qxh6+ {[%emt 0:00:26]} Kg8 {[%emt 0:00:01]} 49. Qe6+ {[%emt 0:01:01]} Kh7 {[%emt 0:01:02]} 50. Nd3 {[%emt 0:06:48]} e4 {[%emt 0:04:21]} 51. Bg6+ {[%emt 0:07:33]} Kh8 {[%emt 0:00:12]} 52. Qe5+ {[%emt 0:02:02]} Kg8 {[%emt 0:00:05]} 53. Qe6+ {[%emt 0:00:59]} Kh8 {[%emt 0:00:19]} 54. Qe5+ {[%emt 0:02:00]} Kg8 {[%emt 0:00:06]} 55. Qe6+ {[%emt 0:00:52]} 1/2-1/2

[Event "Festival Groningen-A 2024"]
[Site "Groningen"]
[Date "2024.12.30"]
[Round "9.4"]
[White "Labruyere, Roger"]
[Black "Stijve, Theo"]
[Result "0-1"]
[ECO "C28"]
[WhiteElo "2344"]
[BlackElo "2396"]
[Annotator "RC"]
[PlyCount "52"]
[EventDate "2024.12.21"]
[EventType "swiss"]
[EventCountry "NED"]
[SourceTitle "playchess.com"]
[Source "ChessBase"]
[SourceQuality "1"]
[TimeControl "40/5400+30:1800+30"]

1. e4 {[%emt 0:00:01]} e5 {[%emt 0:01:10]} 2. Nf3 {[%emt 0:00:57]} Nc6 {[%emt 0:00:07]} 3. Bc4 {[%emt 0:05:23]} Nf6 {[%emt 0:00:16]} 4. d3 {[%emt 0:00:06]} h6 {[%emt 0:00:08]} 5. Nc3 {[%emt 0:02:27]} Bb4 {[%emt 0:00:09]} 6. O-O {[%emt 0:00:59]} Bxc3 {[%emt 0:00:56]} 7. bxc3 {[%emt 0:00:07]} O-O {[%emt 0:00:20]} 8. Re1 {[%emt 0:03:09]} d6 {[%emt 0:00:13]} 9. h3 {[%emt 0:00:04]} Na5 {[%emt 0:00:08]} 10. Bb3 {[%emt 0:00:29]} c5 {[%emt 0:00:15]} 11. Ba4 {[%emt 0:06:21]} c4 {[%emt 0:07:52]} 12. d4 {[%emt 0:05:40]} Qc7 {[%emt 0:02:27]} 13. Ba3 {[%emt 1:11:17]} Rd8 {[%emt 0:05:33]} 14. Qd2 {[%emt 0:00:00]} a6 {[%emt 0:05:46]} 15. Rad1 {[%emt 0:00:00]} Be6 {[%emt 0:12:10]} 16. d5 {[%emt 0:00:00]} Bc8 {[%emt 0:03:00]} 17. Nxe5 {[%emt 0:00:00]} dxe5 {[%emt 0:10:19]} 18. d6 {[%emt 0:00:00]} Qb8 {[%emt 0:04:53]} 19. Bb4 {[%emt 0:00:00]} Nc6 {[%emt 0:01:08]} 20. Bxc6 {[%emt 0:00:00]} bxc6 {[%emt 0:00:09]} 21. Ba5 {[%emt 0:00:00]} Rd7 {[%emt 0:05:09]} 22. f4 {[%emt 0:00:00]} Qb5 {[%emt 0:05:21]} 23. Bb4 {[%emt 0:00:00]} Bb7 {[%emt 0:03:48]} 24. Ba3 {[%emt 0:00:00]} Re8 {[%emt 0:06:17]} 25. Kh2 {[%emt 0:00:00]} c5 {[%emt 0:05:43]} 26. fxe5 {[%emt 0:00:00]} Rxe5 {[%emt 0:00:18]} 0-1

[Event "Festival Groningen-A 2024"]
[Site "Groningen"]
[Date "2024.12.30"]
[Round "9.5"]
[White "Van Foreest, Machteld"]
[Black "Kazakouski, Valery"]
[Result "1-0"]
[ECO "B93"]
[WhiteElo "2309"]
[BlackElo "2567"]
[Annotator "TA"]
[PlyCount "91"]
[EventDate "2024.12.21"]
[EventType "swiss"]
[EventCountry "NED"]
[SourceTitle "playchess.com"]
[Source "ChessBase"]
[SourceQuality "1"]
[TimeControl "40/5400+30:1800+30"]

{[%evp 30,91,57,70,64,83,123,118,158,129,111,31,400,373,476,477,491,487,493,488,439,283,435,447,552,284,670,670,666,652,660,439,513,484,575,577,529,562,6270,6207,1862,202,176,201,390,375,358,361,454,409,652,656,660,660,1039,610,1045,902,713,662,562,600,591,582]} 1. e4 {[%emt 0:00:03]} c5 {[%emt 0:00:10]} 2. Nf3 {[%emt 0:00:26]} d6 {[%emt 0:00:08]} 3. d4 {[%emt 0:00:29]} cxd4 {[%emt 0:00:08]} 4. Nxd4 {[%emt 0:00:04]} Nf6 {[%emt 0:00:10]} 5. Nc3 {[%emt 0:00:04]} a6 {[%emt 0:00:08]} 6. f4 {[%emt 0:00:17]} e5 {[%emt 0:04:38]} 7. Nf3 {[%emt 0:01:31]} Qc7 {[%emt 0:00:09]} 8. a4 {[%emt 0:00:17]} Be7 {[%emt 0:00:35]} 9. Bd3 {[%emt 0:02:36]} Nc6 {[%emt 0:05:16]} 10. O-O {[%emt 0:04:27]} O-O {[%emt 0:09:47]} 11. Be3 $146 {[%emt 0:05:53] B93: Sicilian Najdorf: 6 f4.} ({Predecessor:} 11. Kh1 Nb4 12. Qe1 Be6 13. Nh4 Rfe8 14. fxe5 dxe5 15. Nf5 Bxf5 16. Rxf5 Rad8 17. Qg3 g6 18. Bh6 Nxd3 19. cxd3 {1-0 Bachmann,A (2604)-Preotu,R (2478) Titled Tuesday intern op 10th Jan Early blitz 2023 (6)}) 11... Nb4 {[%emt 0:05:56]} 12. a5 {[%emt 0:12:03]} Be6 {[%emt 0:07:16]} 13. Bb6 {[%emt 0:04:01]} Qb8 {[%emt 0:03:17]} 14. Qd2 {[%emt 0:24:08]} Rc8 {[%emt 0:12:06]} 15. Kh1 {[%emt 0:04:51]} Rc6 {[%emt 0:07:58]} ({Better is} 15... exf4 $11 16. Qxf4 d5) 16. f5 $14 {[%emt 0:02:58]} Bd7 {[%emt 0:02:00]} 17. g4 {[%emt 0:00:31]} h6 {[%emt 0:07:09]} (17... Nxd3 18. cxd3 Nxg4 19. Nd5 $14) 18. Rg1 {[%emt 0:02:23]} d5 {[%emt 0:04:08]} 19. g5 {[%emt 0:04:29]} hxg5 {[%emt 0:00:36]} 20. Rxg5 {[%emt 0:04:33]} (20. Qxg5 $16 {[%csl Gg1][%cal Rg5g7]} Bf8 21. Nxd5 Nbxd5 22. exd5 Nxd5 23. c3) 20... Nh7 $2 {[%emt 0:02:02][%mdl 8192]} (20... d4 $14 21. Na2 (21. Rag1 Ne8 $17) 21... Nxd3 22. cxd3 Qd6) 21. Rg3 $18 {[%emt 0:02:52]} Qd6 {[%emt 0:11:17]} 22. Rag1 {[%emt 0:00:36]} Bf8 {[%emt 0:01:40]} 23. exd5 {[%emt 0:02:12]} (23. Qg2 Qf6 24. Nxd5 (24. exd5 Rxc3 25. bxc3 Nxd5 $18) 24... Nxd5 $18) 23... Rxc3 {[%emt 0:00:33]} 24. bxc3 {[%emt 0:00:10]} (24. Qxc3 Nxd3 25. Qxd3 Re8 $18) 24... Nxd3 {[%emt 0:06:06]} 25. Qxd3 {[%emt 0:01:37]} Nf6 {[%emt 0:00:29]} (25... Re8 {was called for.} 26. Nd2 e4) 26. c4 $18 {[%emt 0:06:41]} e4 {[%emt 0:01:32]} 27. Qe3 {[%emt 0:00:12]} Bxf5 $2 {[%emt 0:04:48]} (27... exf3 28. Qh6 Qxg3 (28... Bxf5 29. Rxg7+ Bxg7 30. Qxg7#) (28... g6 29. Rxg6+ fxg6 30. Qxg6+ Kh8 31. Bd4) 29. Rxg3 Re8) 28. Nh4 $18 {[%emt 0:00:13]} Bh7 {[%emt 0:01:05]} 29. Bd4 {[%emt 0:01:28]} Ne8 {[%emt 0:00:31]} 30. Qg5 {[%emt 0:02:21]} f6 {[%emt 0:01:35]} 31. Qg4 {[%emt 0:00:41]} Rd8 {[%emt 0:01:41]} 32. Bb6 {[%emt 0:02:47]} Rd7 {[%emt 0:01:03]} 33. Bc5 {[%emt 0:02:08]} Qc7 {[%emt 0:00:14]} 34. Qe6+ {[%emt 0:00:52]} Rf7 {[%emt 0:00:02]} 35. Qxe8 $2 {[%emt 0:03:44]} (35. Bxf8 g5 36. Qxe8 Rxf8 37. Rxg5+ fxg5 38. Rxg5+ Qg7 39. Rxg7+ Kxg7 40. Qe5+ Kg8 41. d6) 35... Qxc5 $18 {[%emt 0:00:05]} 36. Qe6 {[%emt 0:01:07]} Qe7 $2 {[%emt 0:00:44]} (36... Qxc4 37. Ng6 e3 38. Ne7+ (38. Rxe3 Bxg6 39. Rxg6 Qxc2 $16) (38. Qxe3 Qxd5+ 39. R1g2 Qxa5 $15) 38... Kh8) 37. Nf5 $18 {[%emt 0:01:35]} Bxf5 {[%emt 0:01:23]} 38. Qxf5 {[%emt 0:00:03]} e3 {[%emt 0:00:33]} 39. Re1 {[%emt 0:01:21]} Qb4 {[%emt 0:00:26]} (39... Qd7 $142 40. Qxd7 Rxd7 41. Rexe3 (41. Rgxe3 Bb4 $18) 41... Bd6) 40. Rgxe3 $18 {[%emt 0:00:17]} (40. Rexe3 Qxc4 41. Rg1 Qb4 $18) 40... Qxa5 {[%emt 0:00:33]} 41. Re8 {[%emt 0:04:36]} Qc7 {[%emt 0:04:28]} 42. Qe6 {[%emt 0:01:46]} g6 {[%emt 0:00:19]} 43. d6 {[%emt 0:02:28]} Qc6+ {[%emt 0:01:26]} 44. Qd5 {[%emt 0:00:10]} Qxd5+ {[%emt 0:04:26]} 45. cxd5 {[%emt 0:00:05]} Rd7 {[%emt 0:00:07]} 46. R1e7 {[%emt 0:00:44]} ({Weaker is} 46. R1e6 Kf7 47. Rxf8+ Kxf8 $16) 1-0

[Event "Festival Groningen-A 2024"]
[Site "Groningen"]
[Date "2024.12.30"]
[Round "9.7"]
[White "Smeets, Kobe"]
[Black "Poetsch, Hagen"]
[Result "1/2-1/2"]
[ECO "B90"]
[WhiteElo "2349"]
[BlackElo "2491"]
[Annotator "RC"]
[PlyCount "136"]
[EventDate "2024.12.21"]
[EventType "swiss"]
[EventCountry "NED"]
[SourceTitle "playchess.com"]
[Source "ChessBase"]
[SourceQuality "1"]
[TimeControl "40/5400+30:1800+30"]

1. e4 {[%emt 0:02:17]} c5 {[%emt 0:00:06]} 2. Nf3 {[%emt 0:00:07]} d6 {[%emt 0:00:07]} 3. d4 {[%emt 0:00:03]} cxd4 {[%emt 0:00:05]} 4. Nxd4 {[%emt 0:00:03]} Nf6 {[%emt 0:00:08]} 5. Nc3 {[%emt 0:00:04]} a6 {[%emt 0:00:04]} 6. h3 {[%emt 0:00:03]} g6 {[%emt 0:00:05]} 7. g4 {[%emt 0:00:24]} Bg7 {[%emt 0:00:08]} 8. Be3 {[%emt 0:01:39]} O-O {[%emt 0:03:54]} 9. g5 {[%emt 0:04:09]} Nfd7 {[%emt 0:01:56]} 10. h4 {[%emt 0:00:21]} Nc6 {[%emt 0:03:10]} 11. h5 {[%emt 0:04:34]} Nde5 {[%emt 0:26:24]} 12. Be2 {[%emt 0:01:23]} Na5 {[%emt 0:05:00]} 13. b3 {[%emt 0:04:40]} b5 {[%emt 0:05:44]} 14. f4 {[%emt 0:06:39]} Nec6 {[%emt 0:02:04]} 15. Qd2 {[%emt 0:00:18]} Nxd4 {[%emt 0:01:29]} 16. Bxd4 {[%emt 0:00:17]} e5 {[%emt 0:00:08]} 17. h6 {[%emt 0:06:18]} Bh8 {[%emt 0:00:59]} 18. fxe5 {[%emt 0:18:13]} Nc6 {[%emt 0:00:07]} 19. Be3 {[%emt 0:06:33]} Bxe5 {[%emt 0:00:48]} 20. Bf4 {[%emt 0:02:29]} Bd4 {[%emt 0:06:59]} 21. Be3 {[%emt 0:01:40]} Be5 {[%emt 0:05:12]} 22. Bf4 {[%emt 0:01:45]} Be6 {[%emt 0:00:19]} 23. O-O-O {[%emt 0:08:25]} Nd4 {[%emt 0:11:14]} 24. Qe3 {[%emt 0:09:42]} Qb6 {[%emt 0:03:57]} 25. Kb1 {[%emt 0:00:28]} Rac8 {[%emt 0:02:18]} 26. Nd5 {[%emt 0:05:39]} Bxd5 {[%emt 0:04:59]} 27. Bxe5 {[%emt 0:00:05]} dxe5 {[%emt 0:00:26]} 28. exd5 {[%emt 0:00:01]} Qc7 {[%emt 0:05:30]} 29. Rc1 {[%emt 0:03:46]} Qd6 {[%emt 0:04:49]} 30. Bg4 {[%emt 0:01:01]} Rc5 {[%emt 0:00:49]} 31. c3 {[%emt 0:04:24]} Nf5 {[%emt 0:00:05]} 32. Bxf5 {[%emt 0:00:10]} gxf5 {[%emt 0:00:05]} 33. c4 {[%emt 0:01:40]} bxc4 {[%emt 0:03:23]} 34. bxc4 {[%emt 0:00:00]} Rb8+ {[%emt 0:00:07]} 35. Ka1 {[%emt 0:00:08]} Rb4 {[%emt 0:01:17]} 36. Rhe1 {[%emt 0:02:01]} Rbxc4 {[%emt 0:01:32]} 37. Rxc4 {[%emt 0:00:19]} Rxc4 {[%emt 0:00:04]} 38. Qxe5 {[%emt 0:00:46]} Qxe5+ {[%emt 0:00:35]} 39. Rxe5 {[%emt 0:00:01]} Kf8 {[%emt 0:01:23]} 40. Rxf5 {[%emt 0:00:30]} Ke7 {[%emt 0:02:19]} 41. d6+ {[%emt 0:34:11]} Kxd6 {[%emt 0:30:05]} 42. Rxf7 {[%emt 0:00:08]} Rg4 {[%emt 0:00:25]} 43. Rf6+ {[%emt 0:00:00]} Kc7 {[%emt 0:00:00]} 44. Rf7+ {[%emt 0:00:00]} Kb6 {[%emt 0:00:00]} 45. Rg7 {[%emt 0:00:00]} Kb5 {[%emt 0:00:00]} 46. Rg8 {[%emt 0:00:00]} Rh4 {[%emt 0:00:00]} 47. Kb2 {[%emt 0:00:00]} a5 {[%emt 0:00:00]} 48. Rb8+ {[%emt 0:00:00]} Ka4 {[%emt 0:00:00]} 49. Rh8 {[%emt 0:04:11]} Rh5 {[%emt 0:00:00]} 50. Rxh7 {[%emt 0:01:59]} Rxg5 {[%emt 0:00:00]} 51. Rg7 {[%emt 0:00:18]} Rb5+ {[%emt 0:00:00]} 52. Kc3 {[%emt 0:00:10]} Rh5 {[%emt 0:00:00]} 53. h7 {[%emt 0:00:39]} Ka3 {[%emt 0:00:00]} 54. Ra7 {[%emt 0:01:03]} a4 {[%emt 0:00:00]} 55. Kc2 {[%emt 0:01:36]} Rh2+ {[%emt 0:00:00]} 56. Kc3 {[%emt 0:00:12]} Rh4 {[%emt 0:00:00]} 57. Kc2 {[%emt 0:00:37]} Rh3 {[%emt 0:00:00]} 58. Kc1 {[%emt 0:00:33]} Rh2 {[%emt 0:00:00]} 59. Kb1 {[%emt 0:00:29]} Rb2+ {[%emt 0:00:00]} 60. Kc1 {[%emt 0:00:08]} Rh2 {[%emt 0:00:00]} 61. Kd1 {[%emt 0:00:43]} Kb2 {[%emt 0:00:00]} 62. Rxa4 {[%emt 0:00:11]} Rxh7 {[%emt 0:00:00]} 63. Ra8 {[%emt 0:00:15]} Rh3 {[%emt 0:00:00]} 64. a4 {[%emt 0:00:17]} Ka3 {[%emt 0:00:00]} 65. a5 {[%emt 0:00:27]} Ka4 {[%emt 0:00:00]} 66. a6 {[%emt 0:00:09]} Ka5 {[%emt 0:00:00]} 67. a7 {[%emt 0:00:07]} Ka6 {[%emt 0:00:00]} 68. Ke1 {[%emt 0:00:09]} Kb7 {[%emt 0:00:00]} 1/2-1/2

[Event "Festival Groningen-A 2024"]
[Site "Groningen"]
[Date "2024.12.30"]
[Round "9.8"]
[White "Kollen, Zyon"]
[Black "Pham, Khoi"]
[Result "1/2-1/2"]
[ECO "C68"]
[WhiteElo "2344"]
[BlackElo "2285"]
[Annotator "RC"]
[PlyCount "58"]
[EventDate "2024.12.21"]
[EventType "swiss"]
[EventCountry "NED"]
[SourceTitle "playchess.com"]
[Source "ChessBase"]
[SourceQuality "1"]
[TimeControl "40/5400+30:1800+30"]

1. e4 {[%emt 0:00:04]} e5 {[%emt 0:00:10]} 2. Nf3 {[%emt 0:00:04]} Nc6 {[%emt 0:00:05]} 3. Bb5 {[%emt 0:00:06]} a6 {[%emt 0:00:05]} 4. Bxc6 {[%emt 0:00:03]} dxc6 {[%emt 0:00:05]} 5. O-O {[%emt 0:00:05]} Qf6 {[%emt 0:00:32]} 6. d4 {[%emt 0:00:08]} exd4 {[%emt 0:00:04]} 7. Bg5 {[%emt 0:00:04]} Qd6 {[%emt 0:00:27]} 8. Qxd4 {[%emt 0:00:08]} Qxd4 {[%emt 0:00:39]} 9. Nxd4 {[%emt 0:00:04]} Bd7 {[%emt 0:00:49]} 10. Nc3 {[%emt 0:00:07]} f6 {[%emt 0:01:44]} 11. Be3 {[%emt 0:02:39]} O-O-O {[%emt 0:00:36]} 12. Rad1 {[%emt 0:00:13]} Ne7 {[%emt 0:00:29]} 13. f3 {[%emt 0:14:23]} Ng6 {[%emt 0:03:33]} 14. Nde2 {[%emt 0:02:04]} Re8 {[%emt 0:05:48]} 15. Bf2 {[%emt 0:07:58]} c5 {[%emt 0:09:18]} 16. Rfe1 {[%emt 0:03:10]} Bc6 {[%emt 0:01:57]} 17. Nd5 {[%emt 0:01:44]} b6 {[%emt 0:08:18]} 18. c4 {[%emt 0:05:46]} a5 {[%emt 0:05:36]} 19. b3 {[%emt 0:01:52]} a4 {[%emt 0:02:00]} 20. Bg3 {[%emt 0:03:41]} Ne5 {[%emt 0:02:18]} 21. Nec3 {[%emt 0:08:35]} axb3 {[%emt 0:01:49]} 22. axb3 {[%emt 0:00:14]} Kb7 {[%emt 0:03:42]} 23. Bxe5 {[%emt 0:05:24]} fxe5 {[%emt 0:03:43]} 24. Ra1 {[%emt 0:00:55]} Bd6 {[%emt 0:01:31]} 25. Ra2 {[%emt 0:03:57]} Ra8 {[%emt 0:01:17]} 26. Rea1 {[%emt 0:00:07]} Rxa2 {[%emt 0:01:24]} 27. Rxa2 {[%emt 0:00:04]} Rd8 {[%emt 0:02:41]} 28. Kf2 {[%emt 0:04:53]} Be8 {[%emt 0:01:48]} 29. Nb5 {[%emt 0:08:11]} c6 {[%emt 0:10:14]} 1/2-1/2